fUSD/lending_fUSD_20240409
["ID","MTS","AMOUNT","RATE_DAILY","PERIOD"]
[321979311,1712670646334,-978.36,0.00020417,2]
[321979312,1712670646343,-1018.75,0.00020417,2]
[321979313,1712670646353,-713.54,0.00020417,2]
[321979314,1712670646362,-1255.34,0.00020417,2]
[321979315,1712670646372,-500.0,0.00020417,2]
[321979316,1712670646381,-814.54,0.00020417,2]
[321979317,1712670646391,-1347.06,0.00020417,2]
[321979318,1712670646405,-1027.54,0.00020417,2]
[321979319,1712670646416,-698.22,0.00020417,2]
[321979320,1712670646425,-541.91,0.00020417,2]
[321979321,1712670646436,-1702.25,0.00020417,2]
[321979322,1712670646446,-500.0,0.00020417,2]
[321979323,1712670646456,-1311.36,0.00020417,2]
[321979324,1712670646466,-500.0,0.00020417,2]
[321979325,1712670646476,-1016.32,0.00020417,2]
[321979326,1712670646486,-500.0,0.00020417,2]
[321979327,1712670646496,-500.0,0.00020417,2]
[321979328,1712670646507,-701.39,0.00020417,2]
[321979329,1712670646517,-676.26,0.00020417,2]
[321979330,1712670646526,-524.8,0.00020417,2]
[321979331,1712670646536,-500.0,0.00020417,2]
[321979332,1712670646545,-1056.65,0.00020417,2]
[321979333,1712670646555,-525.56,0.00020417,2]
[321979334,1712670646564,-500.0,0.00020418,2]
[321979335,1712670646573,-500.0,0.00020418,2]
[321979336,1712670646583,-500.0,0.00020418,2]
[321979337,1712670646592,-500.0,0.00020418,2]
[321979338,1712670646603,-500.0,0.00020418,2]
[321979339,1712670646612,-551.56,0.00020418,2]
[321979340,1712670646623,-580.46,0.00020418,2]
[321979341,1712670646632,-494.32689403,0.00020418,2]
[321979342,1712670646642,-500.0,0.00020418,2]
[321979343,1712670646660,-531.39915154,0.00020418,2]
[321979344,1712670646670,-546.40043429,0.00020418,2]
[321979345,1712670646680,-500.0,0.00020418,2]
[321979346,1712670646691,-500.0,0.00020418,2]
[321979347,1712670646700,-627.45,0.00020418,2]
[321979348,1712670646710,-500.0,0.00020418,2]
[321979349,1712670646720,-500.0,0.00020418,2]
[321979350,1712670646730,-500.0,0.00020418,2]
[321979351,1712670646740,-479.60751052,0.00020418,2]
[321979352,1712670646749,-710.51,0.00020418,2]
[321979353,1712670646759,-500.0,0.00020418,2]
[321979354,1712670646770,-500.0,0.00020418,2]
[321979355,1712670646779,-500.0,0.00020418,2]
[321979356,1712670646789,-500.0,0.00020418,2]
[321979357,1712670646799,-508.11126059,0.00020418,2]
[321979358,1712670646813,-500.0,0.00020418,2]
[321979359,1712670646823,-500.0,0.00020418,2]
[321979360,1712670646832,-500.0,0.00020418,2]
[321979361,1712670646845,-500.0,0.00020418,2]
[321979362,1712670646860,-540.74460517,0.00020418,2]
[321979363,1712670646870,-500.0,0.00020418,2]
[321979364,1712670646879,-500.0,0.00020418,2]
[321979365,1712670646889,-500.0,0.00020418,2]
[321979366,1712670646901,-500.0,0.00020418,2]
[321979367,1712670646913,-500.0,0.00020418,2]
[321979368,1712670646922,-500.0,0.00020418,2]
[321979369,1712670646931,-516.95688854,0.00020418,2]
[321979370,1712670646941,-500.0,0.00020418,2]
[321979371,1712670646950,-500.0,0.00020418,2]
[321979372,1712670646959,-500.0,0.00020418,2]
[321979373,1712670646969,-500.0,0.00020418,2]
[321979374,1712670646979,-508.40612842,0.00020418,2]
[321979375,1712670646990,-622.18485509,0.00020418,2]
[321979376,1712670647000,-500.0,0.00020418,2]
[321979377,1712670647011,-497.78102636,0.00020418,2]
[321979378,1712670647021,-500.0,0.00020418,2]
[321979379,1712670647031,-500.0,0.00020418,2]
[321979380,1712670647040,-500.0,0.00020418,2]
[321979381,1712670647050,-500.0,0.00020418,2]
[321979382,1712670647059,-500.0,0.00020418,2]
[321979383,1712670647069,-500.0,0.00020418,2]
[321979384,1712670647078,-500.0,0.00020418,2]
[321979385,1712670647088,-500.0,0.00020418,2]
[321979386,1712670647097,-500.0,0.00020418,2]
[321979387,1712670647107,-500.0,0.00020418,2]
[321979388,1712670647117,-500.0,0.00020418,2]
[321979389,1712670647126,-500.0,0.00020418,2]
[321979390,1712670647135,-500.0,0.00020418,2]
[321979391,1712670647145,-500.0,0.00020418,2]
[321979392,1712670647158,-500.0,0.00020418,2]
[321979393,1712670647168,-500.0,0.00020418,2]
[321979394,1712670647177,-500.0,0.00020418,2]
[321979395,1712670647186,-500.0,0.00020418,2]
[321979396,1712670647196,-500.0,0.00020418,2]
[321979397,1712670647206,-500.0,0.00020418,2]
[321979398,1712670647216,-500.0,0.00020418,2]
[321979399,1712670647225,-500.0,0.00020418,2]
[321979400,1712670647234,-500.0,0.00020418,2]
[321979401,1712670647243,-500.0,0.00020418,2]
[321979402,1712670647253,-505.35777571,0.00020418,2]
[321979403,1712670647262,-500.0,0.00020418,2]
[321979404,1712670647271,-500.0,0.00020418,2]
[321979405,1712670647281,-500.0,0.00020418,2]
[321979406,1712670647290,-500.0,0.00020418,2]
[321979407,1712670647301,-500.0,0.00020418,2]
[321979408,1712670647314,-500.0,0.00020418,2]
[321979409,1712670647324,-500.0,0.00020418,2]
[321979410,1712670647334,-500.0,0.00020418,2]
[321979411,1712670647343,-500.0,0.00020418,2]
[321979412,1712670647353,-500.0,0.00020418,2]
[321979413,1712670647362,-500.0,0.00020418,2]
[321979414,1712670647371,-523.94938354,0.00020418,2]
[321979415,1712670647381,-500.0,0.00020418,2]
[321979416,1712670647390,-500.0,0.00020418,2]
[321979417,1712670647449,-947.85,0.00020418,2]
[321979418,1712670647460,-500.0,0.00020418,2]
[321979419,1712670647470,-500.0,0.00020418,2]
[321979420,1712670647480,-500.0,0.00020418,2]
[321979421,1712670647489,-500.0,0.00020418,2]
[321979422,1712670647500,-500.0,0.00020418,2]
[321979423,1712670647510,-572.72,0.00020418,2]
[321979424,1712670647520,-500.0,0.00020418,2]
[321979425,1712670647530,-500.0,0.00020418,2]
[321979426,1712670647539,-500.0,0.00020418,2]
[321979427,1712670647549,-500.0,0.00020418,2]
[321979428,1712670647559,-500.0,0.00020418,2]
[321979429,1712670647569,-500.0,0.00020418,2]
[321979430,1712670647580,-500.0,0.00020418,2]
[321979431,1712670647590,-500.0,0.00020418,2]
[321979432,1712670647600,-500.0,0.00020418,2]
[321979433,1712670647610,-500.0,0.00020418,2]
[321979434,1712670647620,-1949.28046968,0.0002043,2]
[321979435,1712670647630,-12460.67164241,0.00020453,2]
[321979436,1712670647639,-150.67349,0.0002049,2]
[321979437,1712670647653,-150.0,0.00020496,2]
[321979438,1712670647663,-500.0,0.00020499,2]
[321979439,1712670647672,-1042.73,0.00020499,2]
[321979440,1712670647681,-1002.7,0.00020499,2]
[321979441,1712670647690,-589.34,0.00020499,2]
[321979442,1712670647699,-589.85,0.00020499,2]
[321979443,1712670647707,-500.0,0.00020499,2]
[321979444,1712670647716,-500.0,0.00020499,2]
[321979445,1712670647725,-936.64,0.00020499,2]
[321979446,1712670647735,-606.71,0.00020499,2]
[321979447,1712670647744,-500.0,0.00020499,2]
[321979448,1712670647754,-881.93,0.00020499,2]
[321979449,1712670647763,-1179.55,0.00020499,2]
[321979450,1712670647773,-992.44,0.00020499,2]
[321979451,1712670647782,-1511.87,0.00020499,2]
[321979452,1712670647793,-500.0,0.000205,2]
[321979453,1712670647803,-228.55194386,0.000205,2]
[321979454,1712670647815,-649.6104634,0.000205,2]
[321979455,1712670647825,-578.79582408,0.000205,2]
[321979456,1712670647834,-152.87406506,0.000205,2]
[321979457,1712670647844,-572.15175283,0.000205,3]
[321979458,1712670647853,-2018.67433834,0.00020505,2]
[321979459,1712670647863,-1949.28046968,0.00020541,2]
[321979460,1712670647872,-12460.67164241,0.00020574,2]
[321979461,1712670647882,-3155.73,0.00020582,2]
[321979462,1712670647893,-2571.86,0.00020582,2]
[321979463,1712670647904,-500.0,0.00020582,2]
[321979464,1712670647914,-2244.98,0.00020582,2]
[321979465,1712670647923,-7492.99,0.00020582,2]
[321979466,1712670647933,-3547.57,0.00020582,2]
[321979467,1712670647943,-1842.67,0.00020582,2]
[321979468,1712670647952,-2097.21,0.00020582,2]
[321979469,1712670647961,-2755.76,0.00020582,2]
[321979470,1712670647971,-508.44,0.00020582,2]
[321979471,1712670647980,-500.0,0.00020582,2]
[321979472,1712670647989,-4660.66,0.00020582,2]
[321979473,1712670647999,-500.0,0.00020582,2]
[321979474,1712670648008,-664.76,0.00020582,2]
[321979475,1712670648017,-2541.79,0.00020582,2]
[321979476,1712670648027,-553.48,0.00020582,2]
[321979477,1712670648036,-500.0,0.00020583,2]
[321979478,1712670648045,-500.0,0.00020583,2]
[321979479,1712670648054,-500.0,0.00020583,2]
[321979480,1712670648064,-500.0,0.00020583,2]
[321979481,1712670648073,-500.0,0.00020583,2]
[321979482,1712670648082,-500.0,0.00020583,2]
[321979483,1712670648092,-500.0,0.00020583,2]
[321979484,1712670648101,-500.0,0.00020583,2]
[321979485,1712670648110,-1271.93,0.00020583,2]
[321979486,1712670648119,-500.0,0.00020583,2]
[321979487,1712670648128,-532.83,0.00020583,2]
[321979488,1712670648138,-514.18,0.00020583,2]
[321979489,1712670648147,-923.27,0.00020583,2]
[321979490,1712670648159,-500.0,0.00020583,2]
[321979491,1712670648168,-500.0,0.00020583,2]
[321979492,1712670648177,-549.16,0.00020583,2]
[321979493,1712670648186,-550.99,0.00020583,2]
[321979494,1712670648195,-7855.39,0.00020583,2]
[321979495,1712670648204,-4768.03,0.00020583,2]
[321979496,1712670648213,-500.0,0.00020583,2]
[321979497,1712670648223,-500.0,0.00020583,2]
[321979498,1712670648232,-604.95460895,0.00020583,2]
[321979499,1712670648241,-500.0,0.00020583,2]
[321979500,1712670648250,-594.82243651,0.00020583,2]
[321979501,1712670648260,-573.92,0.00020583,2]
[321979502,1712670648270,-400.65828999,0.00020583,2]
[321979503,1712670648279,-703.69,0.00020583,2]
[321979504,1712670648288,-500.0,0.00020583,2]
[321979505,1712670648297,-500.0,0.00020583,2]
[321979506,1712670648306,-500.0,0.00020583,2]
[321979507,1712670648315,-2000.47,0.00020583,2]
[321979508,1712670648325,-2211.83,0.00020583,2]
[321979509,1712670648334,-2453.2,0.00020583,2]
[321979510,1712670648343,-500.0,0.00020583,2]
[321979511,1712670648353,-500.0,0.00020583,2]
[321979512,1712670648362,-2379.75,0.00020583,2]
[321979513,1712670648371,-1513.14,0.00020583,2]
[321979514,1712670648381,-500.0,0.00020583,2]
[321979515,1712670648390,-36383.61,0.00020583,2]
[321979516,1712670648401,-500.0,0.00020583,2]
[321979517,1712670648410,-658.33,0.00020583,2]
[321979518,1712670648419,-4351.77,0.00020583,2]
[321979519,1712670648429,-4925.45,0.00020583,2]
[321979520,1712670648438,-500.0,0.00020583,2]
[321979521,1712670648449,-500.0,0.00020583,2]
[321979522,1712670648459,-228.14834152,0.00020583,2]
[321979523,1712670648468,-500.0,0.00020583,2]
[321979524,1712670648479,-500.0,0.00020583,2]
[321979525,1712670648489,-500.0,0.00020583,2]
[321979526,1712670648497,-1868.22,0.00020583,2]
[321979527,1712670648507,-500.0,0.00020583,2]
[321979528,1712670648516,-1012.39,0.00020583,2]
[321979529,1712670648527,-3033.65,0.00020583,2]
[321979530,1712670648538,-500.0,0.00020583,2]
[321979531,1712670648549,-500.0,0.00020583,2]
[321979532,1712670648559,-500.0,0.00020583,2]
[321979533,1712670648569,-993.72,0.00020583,2]
[321979534,1712670648580,-16227.98,0.00020583,2]
[321979535,1712670648590,-3253.36,0.00020583,2]
[321979536,1712670648602,-500.0,0.00020583,2]
[321979537,1712670648613,-500.0,0.00020583,2]
[321979538,1712670648623,-1272.95,0.00020583,2]
[321979539,1712670648633,-326.24938486,0.00020583,2]
[321979540,1712670648644,-500.0,0.00020583,2]
[321979541,1712670648655,-2828.0,0.00020583,2]
[321979542,1712670648665,-517.58,0.00020583,2]
[321979543,1712670648675,-500.0,0.00020583,2]
[321979544,1712670648685,-2092.34,0.00020583,2]
[321979545,1712670648696,-7306.54,0.00020583,2]
[321979546,1712670648707,-500.0,0.00020583,2]
[321979547,1712670648717,-500.0,0.00020583,2]
[321979548,1712670648727,-500.0,0.00020583,2]
[321979549,1712670648737,-500.0,0.00020583,2]
[321979550,1712670648746,-500.0,0.00020583,2]
[321979551,1712670648756,-2775.08,0.00020583,2]
[321979552,1712670648766,-500.0,0.00020583,2]
[321979553,1712670648776,-16556.79,0.00020583,2]
[321979554,1712670648786,-497.32445514,0.00020583,2]
[321979555,1712670648797,-500.0,0.00020583,2]
[321979556,1712670648808,-500.0,0.00020583,2]
[321979557,1712670648819,-500.0,0.00020583,2]
[321979558,1712670648829,-500.0,0.00020583,2]
[321979559,1712670648839,-1572.56,0.00020583,2]
[321979560,1712670648848,-1487.53,0.00020583,2]
[321979561,1712670648857,-500.0,0.00020583,2]
[321979562,1712670648867,-2582.25,0.00020583,2]
[321979563,1712670648876,-500.0,0.00020583,2]
[321979564,1712670648886,-500.0,0.00020583,2]
[321979565,1712670648896,-500.0,0.00020583,2]
[321979566,1712670648996,-669.89,0.00020583,2]
[321979567,1712670649042,-3181.92,0.00020583,2]
[321979568,1712670649052,-500.0,0.00020583,2]
[321979569,1712670649061,-500.0,0.00020583,2]
[321979570,1712670649071,-150.0,0.00020583,2]
[321979571,1712670649081,-3052.52,0.00020583,2]
[321979572,1712670649091,-500.0,0.00020583,2]
[321979573,1712670649101,-500.0,0.00020583,2]
[321979574,1712670649110,-5520.62,0.00020583,2]
[321979575,1712670649121,-500.0,0.00020583,2]
[321979576,1712670649132,-500.0,0.00020583,2]
[321979577,1712670649142,-6225.54,0.00020583,2]
[321979578,1712670649153,-500.0,0.00020583,2]
[321979579,1712670649163,-2848.02,0.00020583,2]
[321979580,1712670649175,-500.0,0.00020583,2]
[321979581,1712670649185,-500.0,0.00020583,2]
[321979582,1712670649196,-500.0,0.00020583,2]
[321979583,1712670649206,-500.0,0.00020583,2]
[321979584,1712670649217,-500.0,0.00020583,2]
[321979585,1712670649228,-500.0,0.00020583,2]
[321979586,1712670649239,-500.0,0.00020583,2]
[321979587,1712670649250,-500.0,0.00020583,2]
[321979588,1712670649260,-2325.83,0.00020583,2]
[321979589,1712670649270,-500.0,0.00020583,2]
[321979590,1712670649280,-500.0,0.00020583,2]
[321979591,1712670649291,-4158.32,0.00020583,2]
[321979592,1712670649302,-928.07,0.00020583,2]
[321979593,1712670649312,-536.19,0.00020583,2]
[321979594,1712670649322,-537.57,0.00020583,2]
[321979595,1712670649333,-500.0,0.00020583,2]
[321979596,1712670649345,-500.0,0.00020583,2]
[321979597,1712670649355,-1465.83,0.00020583,2]
[321979598,1712670649365,-500.0,0.00020583,2]
[321979599,1712670649376,-500.0,0.00020583,2]
[321979600,1712670649386,-513.34441764,0.00020583,2]
[321979601,1712670649396,-500.0,0.00020583,2]
[321979602,1712670649408,-6417.75,0.00020583,2]
[321979603,1712670649418,-500.0,0.00020583,2]
[321979604,1712670649428,-500.0,0.00020583,2]
[321979605,1712670649437,-500.0,0.00020583,2]
[321979606,1712670649447,-150.84367336,0.00020583,2]
[321979607,1712670649456,-1383.21,0.00020583,2]
[321979608,1712670649467,-500.0,0.00020584,2]
[321979609,1712670649478,-500.0,0.00020584,2]
[321979610,1712670649488,-723.61,0.00020584,2]
[321979611,1712670649499,-500.0,0.00020584,2]
[321979612,1712670649511,-520.72,0.00020584,2]
[321979613,1712670649521,-719.2,0.00020584,2]
[321979614,1712670649531,-1266.69,0.00020584,2]
[321979615,1712670649542,-590.72,0.00020584,2]
[321979616,1712670649552,-1026.75,0.00020584,2]
[321979617,1712670649562,-592.28,0.00020584,2]
[321979618,1712670649572,-500.0,0.00020584,2]
[321979619,1712670649581,-500.0,0.00020584,2]
[321979620,1712670649591,-500.0,0.00020584,2]
[321979621,1712670649601,-1221.92,0.00020584,2]
[321979622,1712670649611,-1164.19,0.00020584,2]
[321979623,1712670649620,-500.0,0.00020584,2]
[321979624,1712670649630,-998.29,0.00020584,2]
[321979625,1712670649640,-1140.15,0.00020584,2]
[321979626,1712670649650,-746.84,0.00020584,2]
[321979627,1712670649662,-728.69,0.00020584,2]
[321979628,1712670649673,-1522.84,0.00020584,2]
[321979629,1712670649683,-1434.38,0.00020584,2]
[321979630,1712670649693,-819.59,0.00020584,2]
[321979631,1712670649703,-669.03,0.00020584,2]
[321979632,1712670649713,-1037.43,0.00020584,2]
[321979633,1712670649723,-607.01504093,0.00020584,2]
[321979634,1712670649733,-1118.46,0.00020584,2]
[321979635,1712670649743,-500.0,0.00020584,2]
[321979636,1712670649753,-1151.74,0.00020584,2]
[321979637,1712670649763,-1344.5,0.00020584,2]
[321979638,1712670649773,-752.46,0.00020584,2]
[321979639,1712670649783,-981.72,0.00020584,2]
[321979640,1712670649793,-661.14,0.00020584,2]
[321979641,1712670649807,-594.38,0.00020584,2]
[321979642,1712670649816,-1051.37,0.00020584,2]
[321979643,1712670649827,-1300.91,0.00020584,2]
[321979644,1712670649837,-986.81,0.00020584,2]
[321979645,1712670649847,-931.99,0.00020584,2]
[321979646,1712670649858,-500.0,0.00020584,2]
[321979647,1712670649868,-500.0,0.00020584,2]
[321979648,1712670649878,-500.0,0.00020584,2]
[321979649,1712670649889,-1048.52,0.00020584,2]
[321979650,1712670649898,-634.23,0.00020584,2]
[321979651,1712670649912,-500.0,0.00020584,2]
[321979652,1712670649921,-500.0,0.00020584,2]
[321979653,1712670649931,-500.0,0.00020584,2]
[321979654,1712670649942,-500.0,0.00020584,2]
[321979655,1712670649952,-500.0,0.00020584,2]
[321979656,1712670649962,-1605.48,0.00020584,2]
[321979657,1712670649972,-985.35,0.00020584,2]
[321979658,1712670649982,-500.0,0.00020584,2]
[321979659,1712670649992,-500.0,0.00020584,2]
[321979660,1712670650002,-2015.22,0.00020584,2]
[321979661,1712670650012,-1779.85,0.00020584,2]
[321979662,1712670650022,-792.44,0.00020584,2]
[321979663,1712670650031,-500.0,0.00020584,2]
[321979664,1712670650041,-1018.92,0.00020584,2]
[321979665,1712670650052,-3030.87,0.00020584,2]
[321979666,1712670650062,-500.0,0.00020584,2]
[321979667,1712670650072,-995.38,0.00020584,2]
[321979668,1712670650082,-500.0,0.00020584,2]
[321979669,1712670650092,-2744.05,0.00020584,2]
[321979670,1712670650103,-584.95,0.00020584,2]
[321979671,1712670650113,-2029.02,0.00020584,2]
[321979672,1712670650123,-571.2,0.00020584,2]
[321979673,1712670650134,-1609.0,0.00020584,2]
[321979674,1712670650144,-500.0,0.00020584,2]
[321979675,1712670650158,-1057.72,0.00020584,2]
[321979676,1712670650170,-5047.42,0.00020584,2]
[321979677,1712670650181,-500.0,0.00020584,2]
[321979678,1712670650192,-9636.32,0.00020584,2]
[321979679,1712670650202,-4197.44,0.00020584,2]
[321979680,1712670650214,-3193.69,0.00020584,2]
[321979681,1712670650225,-1227.24,0.00020584,2]
[321979682,1712670650235,-5587.66,0.00020584,2]
[321979683,1712670650245,-1235.51,0.00020584,2]
[321979684,1712670650256,-1410.12,0.00020584,2]
[321979685,1712670650266,-1793.95,0.00020584,2]
[321979686,1712670650276,-14124.14,0.00020584,2]
[321979687,1712670650286,-2135.72,0.00020584,2]
[321979688,1712670650297,-2332.38,0.00020584,2]
[321979689,1712670650307,-2801.54,0.00020584,2]
[321979690,1712670650317,-1252.97,0.00020584,2]
[321979691,1712670650327,-9641.06,0.00020584,2]
[321979692,1712670650336,-217.31950433,0.00020584,2]
[321979693,1712670650346,-4990.1,0.00020584,2]
[321979694,1712670650356,-500.0,0.00020584,2]
[321979695,1712670650366,-4387.03,0.00020584,2]
[321979696,1712670650376,-4905.89,0.00020584,2]
[321979697,1712670650385,-8126.77,0.00020584,2]
[321979698,1712670650395,-631.61,0.00020584,2]
[321979699,1712670650407,-9299.39,0.00020584,2]
[321979700,1712670650416,-2606.32,0.00020584,2]
[321979701,1712670650425,-6377.11,0.00020584,2]
[321979702,1712670650434,-741.56,0.00020584,2]
[321979703,1712670650443,-3600.67,0.00020584,2]
[321979704,1712670650452,-1848.76,0.00020584,2]
[321979705,1712670650462,-20158.77,0.00020584,2]
[321979706,1712670650471,-3904.67,0.00020584,2]
[321979707,1712670650481,-2856.24,0.00020584,2]
[321979708,1712670650491,-1974.34,0.00020584,2]
[321979709,1712670650500,-564.13,0.00020584,2]
[321979710,1712670650510,-15355.28,0.00020584,2]
[321979711,1712670650519,-542.34020319,0.00020584,2]
[321979712,1712670650529,-5602.33,0.00020584,2]
[321979713,1712670650538,-1419.89,0.00020584,2]
[321979714,1712670650548,-1399.53,0.00020584,2]
[321979715,1712670650558,-12977.82,0.00020584,2]
[321979716,1712670650567,-382.02793336,0.00020584,2]
[321979717,1712670650576,-500.0,0.00020584,2]
[321979718,1712670650586,-45657.22,0.00020584,2]
[321979719,1712670650596,-576.86,0.00020584,2]
[321979720,1712670650607,-674.33,0.00020584,2]
[321979721,1712670650617,-2688.33,0.00020584,2]
[321979722,1712670650627,-500.0,0.00020584,2]
[321979723,1712670650636,-800.61,0.00020584,2]
[321979724,1712670650647,-2222.17,0.00020584,2]
[321979725,1712670650661,-1946.14,0.00020584,2]
[321979726,1712670650671,-1610.64,0.00020584,2]
[321979727,1712670650681,-741.85,0.00020584,2]
[321979728,1712670650691,-3552.27,0.00020584,2]
[321979729,1712670650701,-1216.43,0.00020584,2]
[321979730,1712670650711,-1559.1,0.00020584,2]
[321979731,1712670650721,-2634.23,0.00020584,2]
[321979732,1712670650731,-5491.37,0.00020584,2]
[321979733,1712670650741,-2511.21,0.00020584,2]
[321979734,1712670650752,-1777.55,0.00020584,2]
[321979735,1712670650763,-1736.41,0.00020584,2]
[321979736,1712670650773,-5237.76,0.00020584,2]
[321979737,1712670650784,-3707.94,0.00020584,2]
[321979738,1712670650794,-1979.76,0.00020584,2]
[321979739,1712670650805,-500.0,0.00020584,2]
[321979740,1712670650819,-2783.01,0.00020584,2]
[321979741,1712670650829,-500.0,0.00020584,2]
[321979742,1712670650839,-4116.25,0.00020584,2]
[321979743,1712670650850,-3047.18,0.00020584,2]
[321979744,1712670650860,-1234.27,0.00020584,2]
[321979745,1712670650870,-313.49955064,0.0002059,2]
[321979746,1712670650880,-768.99,0.00020599,2]
[321979747,1712670650891,-768.99,0.00020599,2]
[321979748,1712670650901,-768.99,0.00020599,2]
[321979749,1712670650916,-768.99,0.00020599,2]
[321979750,1712670650926,-768.99,0.00020599,2]
[321979751,1712670650936,-768.99,0.00020599,2]
[321979752,1712670650946,-768.99,0.00020599,2]
[321979753,1712670650956,-768.99,0.00020599,2]
[321979754,1712670650967,-768.99,0.00020599,2]
[321979755,1712670650978,-768.99,0.00020599,2]
[321979756,1712670650990,-768.99,0.00020599,2]
[321979757,1712670651001,-768.99,0.00020599,2]
[321979758,1712670651011,-768.99,0.00020599,2]
[321979759,1712670651021,-768.99,0.00020599,2]
[321979760,1712670651030,-768.99,0.00020599,2]
[321979761,1712670651039,-500.0,0.00020599,2]
[321979762,1712670651050,-552.67875174,0.00020599,2]
[321979763,1712670651059,-663266.62422764,0.000206,3]
[321979764,1712670651886,-21256.22446858,0.000206,3]
[321979765,1712670651899,-274.74,0.000206,3]
[321979766,1712670651914,-720.82130096,0.000206,3]
[321979767,1712670651926,-8122.50309798,0.000206,3]
[321979768,1712670651938,-5292.1262398,0.000206,3]
[321979769,1712670652091,-35201.99999999,0.000206,3]
[321979770,1712670652102,-8751.75,0.000206,3]
[321979771,1712670652514,-373.51,0.00020307,2]
[321979772,1712670652525,-1302.68,0.00020309,2]
[321979773,1712670652536,-500.0,0.00020582,2]
[321979774,1712670652546,-500.0,0.00020583,2]
[321979775,1712670652557,-2717.10955263,0.00020583,2]
[321979776,1712670652587,-944.05044737,0.00020583,2]
[321979777,1712670652599,-17.05973263,0.00020583,2]
[321979778,1712670652755,-1285.62026737,0.00020583,2]
[321979779,1712670652766,-34160.39378183,0.000206,3]
[321979780,1712670653570,-320.82585372,0.00020308,2]
[321979781,1712670653582,-179.17414628,0.00020308,2]
[321979782,1712670653591,-1164.50129225,0.00020308,2]
[321979783,1712670653601,-918.12540784,0.00020308,2]
[321979784,1712670653611,-140.99512146,0.00020308,2]
[321979785,1712670653641,-503.998,0.00020308,2]
[321979786,1712670653657,-594.25218928,0.00020308,2]
[321979787,1712670653667,-505.48784488,0.0002031,2]
[321979788,1712670653676,-500.0,0.00020582,2]
[321979789,1712670653685,-366.55996584,0.000206,3]
[321979790,1712670653717,-3233.68376945,0.000206,3]
[321979791,1712670653729,-14186.25586185,0.000206,3]
[321979792,1712670653740,-4858.96957783,0.000206,3]
[321979793,1712670653752,-1204.36862196,0.000206,3]
[321979794,1712670653763,-2131.80020886,0.000206,3]
[321979795,1712670653775,-31307.16599999,0.000206,3]
[321979796,1712670653786,-3436.36696559,0.000206,3]
[321979797,1712670653804,-8175.0100882,0.000206,3]
[321979798,1712670653816,-435.96288844,0.000206,3]
[321979799,1712670653841,-404.73102028,0.00020308,2]
[321979800,1712670653851,-32944.16110445,0.000206,3]
[321979801,1712670653863,-1447.97096847,0.000206,3]
[321979802,1712670653899,-1216.82314558,0.000206,3]
[321979803,1712670654497,-436.05750126,0.00020307,2]
[321979804,1712670654511,-306.46757217,0.00020307,2]
[321979805,1712670654524,-57.89065818,0.00020307,2]
[321979806,1712670654537,-342.50720573,0.00020307,2]
[321979807,1712670654549,-155.0,0.00020307,2]
[321979808,1712670654562,-500.0,0.00020308,2]
[321979809,1712670654575,-842.11773925,0.00020308,2]
[321979810,1712670654587,-500.0,0.00020582,2]